fUST/lending_fUST_20240111
["ID","MTS","AMOUNT","RATE_DAILY","PERIOD"]
[311160115,1704947438588,-245.88461104,0.0001345,2]
[311160116,1704947438597,-324.17621343,0.00013453,2]
[311160117,1704947438606,-709.99827561,0.00013453,2]
[311160118,1704947438616,-154.21250895,0.0001346,2]
[311160119,1704947438625,-895.61323303,0.00013576,2]
[311160120,1704947438635,-155.12704871,0.00013676,2]
[311160121,1704947438645,-155.25546466,0.00013679,2]
[311160122,1704947438654,-640.2057401,0.00013679,2]
[311160123,1704947438666,-4397.79025265,0.00013684,2]
[311160124,1704947438675,-469.71701685,0.00013686,2]
[311160125,1704947438684,-2070.70229933,0.00013686,2]
[311160126,1704947438693,-155.0,0.00013689,2]
[311160127,1704947438703,-266.03105155,0.00013689,2]
[311160128,1704947438712,-216.90453567,0.00013689,2]
[311160129,1704947438721,-155.49146739,0.0001369,2]
[311160130,1704947438730,-190.62928721,0.00013691,2]
[311160131,1704947438739,-1945.869462,0.00013699,2]
[311160132,1704947438748,-4307.0703734,0.00013699,2]
[311160133,1704947438758,-874.79068657,0.00014215,2]
[311160134,1704947438767,-302.21212566,0.00014215,2]
[311160135,1704947438776,-1197.40609706,0.00014226,2]
[311160136,1704947438785,-178.02720641,0.00014232,2]
[311160137,1704947438794,-2066.39219479,0.00014235,2]
[311160138,1704947438802,-364.19522002,0.00014235,2]
[311160139,1704947438812,-301.48153543,0.00014235,2]
[311160140,1704947438821,-1183.09581961,0.00014235,2]
[311160141,1704947438830,-400.8343683,0.00014235,2]
[311160142,1704947438839,-323.53882414,0.00014236,2]
[311160143,1704947438849,-2676.40309316,0.00014236,2]
[311160144,1704947438859,-309.95723111,0.00014236,2]
[311160145,1704947438869,-155.4828728,0.00014236,2]
[311160146,1704947438878,-238.38294085,0.00014236,2]
[311160147,1704947438887,-797.03692512,0.00014242,2]
[311160148,1704947438896,-155.55446232,0.00014242,2]
[311160149,1704947438905,-390.46255952,0.00014242,2]
[311160150,1704947438915,-155.68129638,0.00014242,2]
[311160151,1704947438925,-155.05966163,0.00014244,2]
[311160152,1704947438934,-409.95513465,0.00014244,2]
[311160153,1704947438943,-184.66296864,0.00014244,2]
[311160154,1704947438953,-761.99878603,0.00014396,2]
[311160155,1704947438963,-686.6489252,0.00015,2]
[311160156,1704947438973,-155.0,0.00015,2]
[311160157,1704947438982,-895.613233,0.00015294,2]
[311160158,1704947438993,-213.23538049,0.00015982,2]
[311160160,1704947439002,-1593.15140259,0.00015996,2]
[311160161,1704947439011,-180.77973209,0.00015996,2]
[311160162,1704947439023,-175.61306139,0.00015997,2]
[311160163,1704947439032,-155.35370352,0.00015998,2]
[311160164,1704947439041,-1598.5088879,0.00015998,2]
[311160165,1704947439051,-155.089591,0.00015998,2]
[311160166,1704947439060,-155.31506109,0.00015998,2]
[311160167,1704947439069,-155.0151673,0.00015998,2]
[311160168,1704947439078,-213.19734832,0.00015998,2]
[311160169,1704947439087,-155.31481865,0.00015998,2]
[311160170,1704947439097,-155.12349042,0.00015998,2]
[311160171,1704947439110,-155.68163135,0.00015998,2]
[311160172,1704947439121,-229.53069442,0.00015998,2]
[311160173,1704947439131,-156.51254466,0.00015998,2]
[311160174,1704947439140,-155.15886733,0.00015998,2]
[311160175,1704947439151,-787.82571813,0.00015998,2]
[311160176,1704947439160,-271.85427602,0.00015998,2]
[311160177,1704947439170,-229.13208191,0.00015998,2]
[311160178,1704947439180,-277.50531123,0.00015998,2]
[311160179,1704947439190,-215.91663289,0.00015998,2]
[311160180,1704947439199,-174.76873055,0.00015998,2]
[311160181,1704947439209,-155.16367244,0.00015998,2]
[311160182,1704947439218,-266.7531457,0.00015998,2]
[311160183,1704947439227,-155.07506532,0.00015998,2]
[311160184,1704947439236,-281.7555391,0.00015998,2]
[311160185,1704947439248,-155.68825038,0.00015998,2]
[311160186,1704947439258,-243.35599312,0.00015998,2]
[311160187,1704947439268,-155.11758818,0.00015998,2]
[311160188,1704947439277,-180.19693683,0.00015998,2]
[311160189,1704947439286,-8501.53206913,0.00015998,2]
[311160190,1704947439295,-546.87419273,0.00015998,2]
[311160191,1704947439304,-2709.39921815,0.00015999,2]
[311160192,1704947439313,-283561.35337882,0.00016,2]
[311160193,1704947439322,-272.00985266,0.000165,2]
[311160194,1704947439333,-895.613233,0.00017012,2]
[311160195,1704947439342,-872.72571525,0.00017235,2]
[311160196,1704947439352,-246.10686283,0.000178,2]
[311160197,1704947439362,-10503.19627673,0.00017898,2]
[311160198,1704947439371,-155.20238208,0.00018,2]
[311160199,1704947439380,-895.613233,0.0001873,2]
[311160200,1704947439389,-1578.97802722,0.00019,2]
[311160201,1704947439398,-165.830005,0.00019178,2]
[311160202,1704947439408,-160.177843,0.00019178,2]
[311160203,1704947439417,-1112.22182837,0.000195,2]
[311160204,1704947439425,-276000.0,0.000199,2]
[311160205,1704947439435,-155.0,0.0002,2]
[311160206,1704947439445,-270787.85398816,0.0002,2]
[311160207,1704947439454,-677.0708176,0.0002,2]
[311160208,1704947439463,-853.72221584,0.0002,2]
[311160209,1704947439472,-2079.89647566,0.0002,2]
[311160210,1704947439481,-200.0,0.0002,2]
[311160211,1704947439490,-300.0,0.0002,2]
[311160212,1704947439499,-1195.27282006,0.0002,2]
[311160213,1704947439509,-266.37190097,0.0002,2]
[311160214,1704947439518,-155.0,0.0002,2]
[311160215,1704947439529,-569.37401545,0.0002,2]
[311160216,1704947439538,-236.97375297,0.0002,2]
[311160217,1704947439547,-155.0,0.0002,2]
[311160218,1704947439557,-665.38112702,0.0002,2]
[311160219,1704947439566,-168.57048586,0.0002,2]
[311160220,1704947439575,-156.98066476,0.0002,2]
[311160221,1704947439584,-200.0,0.0002,2]
[311160222,1704947439593,-6528.127613,0.0002,2]
[311160223,1704947439602,-6528.127613,0.0002,2]
[311160224,1704947439611,-6528.127613,0.0002,2]
[311160225,1704947439620,-6528.127613,0.0002,2]
[311160226,1704947439630,-6528.127613,0.0002,2]
[311160227,1704947439640,-151.61911179,0.0002,2]
[311160228,1704947439650,-895.613233,0.00020448,2]
[311160229,1704947439659,-1945.869462,0.00020548,2]
[311160230,1704947439668,-1822.05331204,0.00021,2]
[311160231,1704947439677,-326.7917286,0.00021,2]
[311160232,1704947439686,-337.0634007,0.00021918,2]
[311160233,1704947439695,-166.666666,0.00021918,2]
[311160234,1704947439704,-292.87321948,0.00022,4]
[311160235,1704947439714,-3935.17481612,0.00022,2]
[311160236,1704947439723,-156.88951629,0.00022,2]
[311160237,1704947439731,-4918.87947459,0.00022,2]
[311160238,1704947439741,-786.22948107,0.00022,2]
[311160239,1704947439750,-166.666666,0.00022431,2]
[311160240,1704947439759,-166.666666,0.00022944,2]
[311160241,1704947439769,-2093.45221107,0.00023,2]
[311160242,1704947439778,-9923.17263833,0.00023,2]
[311160243,1704947439787,-166.666666,0.00023456,2]
[311160244,1704947439796,-166.666666,0.00023969,2]
[311160246,1704947439805,-497.12734932,0.0002398,5]
[311160248,1704947439814,-614.12133667,0.00024,2]
[311160249,1704947439823,-2293.60196635,0.00024,2]
[311160250,1704947439832,-155.24711582,0.00024,2]
[311160251,1704947439841,-166.666666,0.00024482,2]
[311160252,1704947439850,-380.0,0.00024658,2]
[311160253,1704947439859,-200.0,0.00024658,2]
[311160254,1704947439868,-687.75702701,0.000247,2]
[311160255,1704947439878,-4711.91259146,0.00025,2]
[311160256,1704947439887,-677.62834989,0.00025,2]
[311160257,1704947439896,-3000.0,0.00025,2]
[311160258,1704947439906,-763.51274644,0.00025,2]
[311160260,1704947439915,-155.0,0.00025,2]
[311160263,1704947439924,-295.41689888,0.00025,2]
[311160264,1704947439933,-155.2351122,0.00025,2]
[311160265,1704947439942,-50000.0,0.0002593,2]
[311160266,1704947439952,-525.99300196,0.00026,2]
[311160267,1704947439961,-3645.64225585,0.00026,2]
[311160268,1704947439970,-722.16210952,0.000264,2]
[311160269,1704947439979,-309.94478728,0.000265,2]
[311160270,1704947439989,-3314.01740452,0.00027,2]
[311160271,1704947439998,-733.338016,0.00027,2]
[311160272,1704947440007,-309.84518051,0.00027,2]
[311160273,1704947440017,-9100.04106185,0.000273,4]
[311160274,1704947440027,-500.0,0.00027397,2]
[311160276,1704947440035,-155.0,0.00027397,2]
[311160278,1704947440045,-601.21072826,0.000274,2]
[311160279,1704947440053,-500.0,0.00027534,2]
[311160280,1704947440063,-151.0,0.0002755,7]
[311160281,1704947440073,-500.0,0.00027671,2]
[311160282,1704947440082,-625.10810548,0.0002772,2]
[311160283,1704947440092,-500.0,0.00027808,2]
[311160284,1704947440101,-7766.81346991,0.000279,2]
[311160285,1704947440112,-500.0,0.00027945,2]
[311160286,1704947440121,-585.54897925,0.00028,2]
[311160287,1704947440130,-500.0,0.00028082,2]
[311160288,1704947440139,-151.0,0.00028113,4]
[311160289,1704947440148,-500.0,0.00028219,2]
[311160290,1704947440158,-500.0,0.00028356,2]
[311160291,1704947440167,-500.0,0.00028493,2]
[311160292,1704947440175,-500.0,0.0002863,2]
[311160293,1704947440186,-151.0,0.00028686,2]
[311160294,1704947440195,-1500.0,0.000287,2]
[311160295,1704947440281,-254.23001474,0.00028701,3]
[311160297,1704947440302,-500.0,0.00028767,2]
[311160298,1704947440310,-155.0,0.00028767,2]
[311160299,1704947440319,-500.0,0.00028904,2]
[311160300,1704947440328,-1888.96501401,0.00028999,2]
[311160301,1704947440337,-185.77440094,0.00029,2]
[311160302,1704947440346,-3807.00559693,0.00029,2]
[311160303,1704947440354,-500.0,0.00029041,2]
[311160304,1704947440363,-620.25540527,0.00029106,2]
[311160305,1704947440372,-440709.77646,0.00029125,2]
[311160306,1704947440381,-93857.31394068,0.00029126,2]
[311160307,1704947440390,-5000.0,0.00029126,5]
[311160308,1704947440399,-1261.091457,0.00029126,2]
[311160309,1704947440408,-1261.091457,0.00029126,2]
[311160310,1704947440417,-151.0,0.00029126,2]
[311160311,1704947440426,-23666.18162768,0.00029131,2]
[311160312,1704947440434,-11437.40905519,0.00029141,2]
[311160313,1704947440443,-2838.85260208,0.00029141,3]
[311160314,1704947440452,-500.0,0.00029178,2]
[311160315,1704947440460,-500.0,0.00029315,2]
[311160316,1704947440469,-306.7691535,0.00029315,2]
[311160317,1704947440478,-451.7797763,0.00029315,2]
[311160318,1704947440486,-306.0,0.00029315,2]
[311160319,1704947440495,-153.0,0.0002937,2]
[311160320,1704947440504,-315.9664082,0.00029397,2]
[311160321,1704947440512,-153.0,0.00029429,2]
[311160322,1704947440522,-500.0,0.00029452,2]
[311160323,1704947440530,-153.0,0.00029476,2]
[311160324,1704947440540,-153.73462599,0.00029568,2]
[311160325,1704947440549,-500.0,0.00029589,2]
[311160326,1704947440558,-5518.496776,0.00029613,2]
[311160327,1704947440568,-5518.496776,0.00029613,2]
[311160328,1704947440579,-500.0,0.00029613,7]
[311160329,1704947440588,-500.0,0.00029613,7]
[311160330,1704947440598,-500.0,0.00029613,7]
[311160331,1704947440607,-500.0,0.00029613,7]
[311160332,1704947440618,-500.0,0.00029613,7]
[311160333,1704947440628,-500.0,0.00029613,7]
[311160334,1704947440638,-500.0,0.00029613,7]
[311160335,1704947440647,-500.0,0.00029613,7]
[311160336,1704947440657,-500.0,0.00029613,7]
[311160337,1704947440666,-500.0,0.00029613,7]
[311160338,1704947440674,-500.0,0.00029613,7]
[311160339,1704947440684,-500.0,0.00029613,7]
[311160340,1704947440693,-562.12,0.00029613,7]
[311160341,1704947440702,-152.31502045,0.00029635,2]
[311160342,1704947440712,-151.2478173,0.00029651,2]
[311160343,1704947440721,-151.0,0.0002967,2]
[311160344,1704947440730,-1500.0,0.000297,2]
[311160345,1704947440740,-500.0,0.00029726,2]
[311160346,1704947440749,-153.0,0.00029726,2]
[311160347,1704947440759,-153.0,0.00029726,2]
[311160348,1704947440769,-153.0,0.00029726,2]
[311160349,1704947440778,-242.90501079,0.0002976,4]
[311160350,1704947440787,-50000.0,0.00029813,5]
[311160351,1704947440796,-500.0,0.00029863,2]
[311160352,1704947440805,-156.46544226,0.00029889,2]
[311160353,1704947440815,-152.31502045,0.00029935,2]
[311160354,1704947440824,-38379.93475574,0.00029976,2]
[311160355,1704947440833,-500.0,0.00029999,2]
[311160356,1704947440842,-15040.88068289,0.0003,4]
[311160357,1704947440851,-282.67247261,0.0003,3]
[311160358,1704947440860,-639.80669723,0.0003,4]
[311160359,1704947440870,-236.54101658,0.0003,7]
[311160360,1704947440879,-1865.18032884,0.0003,4]
[311160361,1704947440888,-11908.01427053,0.0003,5]
[311160362,1704947440898,-155.0,0.0003,2]
[311160363,1704947440908,-155.18046676,0.0003,4]
[311160364,1704947440917,-6975.26133049,0.0003,4]
[311160366,1704947440926,-463.46661998,0.0003,4]
[311160368,1704947440935,-686.8051383,0.0003,4]
[311160370,1704947440945,-192.014833,0.0003,2]
[311160371,1704947440954,-192.014833,0.0003,2]
[311160372,1704947440963,-11501.97,0.0003,5]
[311160373,1704947440972,-2103.92158194,0.0003,2]
[311160374,1704947440981,-275.0,0.0003,2]
[311160375,1704947440990,-306.0,0.00030027,2]
[311160376,1704947441000,-153.0,0.00030036,2]
[311160377,1704947441009,-153.0,0.00030036,2]
[311160378,1704947441020,-153.8399605,0.00030036,2]
[311160379,1704947441029,-4999.97,0.00030038,2]
[311160380,1704947441040,-5000.0,0.00030047,2]
[311160381,1704947441050,-5000.0,0.00030066,2]
[311160382,1704947441059,-5000.0,0.00030071,2]
[311160383,1704947441068,-5041.82,0.00030073,2]
[311160384,1704947441077,-4958.16,0.00030076,2]
[311160385,1704947441087,-4999.97,0.00030076,2]
[311160386,1704947441098,-2439.03,0.00030077,2]
[311160387,1704947441109,-5000.0,0.00030082,2]
[311160388,1704947441118,-5000.07,0.00030082,2]
[311160389,1704947441128,-2000.0,0.000301,2]
[311160390,1704947441139,-2000.0,0.000301,2]
[311160391,1704947441148,-2000.0,0.0003011,2]
[311160392,1704947441159,-2000.0,0.0003011,2]
[311160393,1704947441168,-3716.271592,0.0003012,2]
[311160394,1704947441177,-2000.0,0.0003012,2]
[311160395,1704947441193,-2000.0,0.0003013,2]
[311160396,1704947441203,-467.30354234,0.0003013,2]
[311160397,1704947441214,-161.39102364,0.00030135,10]
[311160398,1704947441223,-160.0,0.00030135,10]
[311160399,1704947441232,-160.0,0.00030135,10]
[311160400,1704947441241,-5518.496776,0.00030136,2]
[311160401,1704947441250,-5518.496776,0.00030136,2]
[311160402,1704947441259,-1261.091457,0.00030136,2]
[311160403,1704947441268,-1261.091457,0.00030136,2]
[311160404,1704947441277,-151.0,0.00030136,2]
[311160405,1704947441286,-500.0,0.00030136,2]
[311160406,1704947441295,-500.0,0.00030136,2]
[311160407,1704947441304,-500.0,0.00030136,2]
[311160408,1704947441312,-500.0,0.00030136,2]
[311160409,1704947441323,-500.0,0.00030136,2]
[311160410,1704947441334,-500.0,0.00030136,2]
[311160411,1704947441344,-500.0,0.00030136,2]
[311160412,1704947441353,-500.81343408,0.00030136,2]
[311160413,1704947441362,-506.72182713,0.00030136,2]
[311160414,1704947441371,-500.0,0.00030136,2]
[311160415,1704947441380,-500.0,0.00030136,2]
[311160416,1704947441388,-500.0,0.00030136,2]
[311160417,1704947441397,-500.0,0.00030136,2]
[311160418,1704947441406,-500.0,0.00030136,2]
[311160419,1704947441417,-500.0,0.00030136,2]
[311160420,1704947441427,-500.0,0.00030136,2]
[311160421,1704947441438,-201.73518869,0.00030136,2]
[311160422,1704947441447,-421.07384829,0.00030136,2]
[311160423,1704947441457,-500.0,0.00030136,2]
[311160424,1704947441467,-594.76805938,0.00030136,2]
[311160425,1704947441476,-500.0,0.00030136,2]
[311160426,1704947441485,-256.50796494,0.00030136,2]
[311160427,1704947441494,-500.0,0.00030136,2]
[311160428,1704947441503,-500.0,0.00030136,2]
[311160429,1704947441512,-500.0,0.00030136,2]
[311160430,1704947441521,-500.0,0.00030136,2]
[311160431,1704947441530,-500.0,0.00030136,2]
[311160432,1704947441539,-500.0,0.00030136,2]
[311160433,1704947441550,-500.0,0.00030136,2]
[311160434,1704947441559,-509.95610611,0.00030136,2]
[311160435,1704947441568,-384.12539335,0.00030136,2]
[311160436,1704947441578,-500.0,0.00030136,2]
[311160437,1704947441586,-596.07060748,0.00030136,2]
[311160438,1704947441595,-1000.0,0.00030136,2]
[311160439,1704947441605,-160.18086769,0.00030136,2]
[311160440,1704947441614,-500.0,0.00030136,2]
[311160441,1704947441623,-500.0,0.00030136,2]
[311160442,1704947441632,-502.67753851,0.00030136,2]
[311160443,1704947441641,-500.0,0.00030136,2]
[311160444,1704947441650,-500.40558924,0.00030136,2]
[311160445,1704947441659,-500.0,0.00030136,2]
[311160446,1704947441668,-500.0,0.00030136,2]
[311160447,1704947441677,-501.53777005,0.00030136,2]
[311160448,1704947441687,-500.0,0.00030136,2]
[311160449,1704947441698,-309.91204737,0.00030136,2]
[311160450,1704947441707,-500.0,0.00030136,2]
[311160451,1704947441716,-500.0,0.00030136,2]
[311160452,1704947441725,-500.0,0.00030136,2]
[311160453,1704947441734,-500.0,0.00030136,2]
[311160454,1704947441743,-501.97750942,0.00030136,2]
[311160455,1704947441752,-217.3164488,0.00030136,2]
[311160456,1704947441762,-758.66,0.00030136,2]
[311160457,1704947441770,-500.0,0.00030136,2]
[311160458,1704947441780,-500.0,0.00030136,2]
[311160459,1704947441789,-500.0,0.00030136,2]
[311160460,1704947441798,-500.0,0.00030136,2]
[311160461,1704947441807,-504.58329312,0.00030136,2]
[311160462,1704947441816,-500.0,0.00030136,2]
[311160463,1704947441825,-500.0,0.00030136,2]
[311160464,1704947441834,-503.17641592,0.00030136,2]
[311160465,1704947441843,-500.0,0.00030136,2]
[311160466,1704947441853,-500.0,0.00030136,2]
[311160467,1704947441864,-500.0,0.00030136,2]
[311160468,1704947441872,-500.0,0.00030136,2]
[311160469,1704947441881,-500.0,0.00030136,2]
[311160470,1704947441891,-219.92,0.00030136,2]
[311160471,1704947441900,-500.0,0.00030136,2]
[311160472,1704947441909,-500.0,0.00030136,2]
[311160473,1704947441918,-500.0,0.00030136,2]
[311160474,1704947441928,-500.0,0.00030136,2]
[311160475,1704947441937,-500.0,0.00030136,2]
[311160476,1704947441947,-556.52601552,0.00030136,2]
[311160477,1704947441956,-1768.78,0.00030136,2]
[311160478,1704947441965,-500.0,0.00030136,2]
[311160479,1704947441974,-500.0,0.00030136,2]
[311160480,1704947441983,-500.0,0.00030136,2]
[311160481,1704947441992,-500.0,0.00030136,2]
[311160482,1704947442001,-150.0,0.00030136,2]
[311160483,1704947442010,-500.0,0.00030136,2]
[311160484,1704947442019,-502.67434409,0.00030136,2]
[311160485,1704947442028,-500.0,0.00030136,2]
[311160486,1704947442037,-500.0,0.00030136,2]
[311160487,1704947442046,-177.43908721,0.00030136,2]
[311160488,1704947442055,-507.68147259,0.00030136,2]
[311160489,1704947442064,-500.0,0.00030136,2]
[311160490,1704947442073,-502.49872204,0.00030136,2]
[311160491,1704947442081,-496.52210292,0.00030136,2]
[311160492,1704947442090,-445.60852312,0.00030136,2]
[311160493,1704947442100,-599.08,0.00030136,2]
[311160494,1704947442109,-500.0,0.00030136,2]
[311160495,1704947442118,-500.0,0.00030136,2]
[311160496,1704947442127,-500.0,0.00030136,2]
[311160497,1704947442136,-156.58977598,0.00030136,2]
[311160498,1704947442145,-500.0,0.00030136,2]
[311160499,1704947442153,-500.0,0.00030136,2]
[311160500,1704947442164,-500.0,0.00030136,2]
[311160501,1704947442172,-500.0,0.00030136,2]
[311160502,1704947442181,-505.37757278,0.00030136,2]
[311160503,1704947442191,-500.0,0.00030136,2]
[311160504,1704947442200,-500.0,0.00030136,2]
[311160505,1704947442209,-500.0,0.00030136,2]
[311160506,1704947442218,-500.0,0.00030136,2]
[311160507,1704947442227,-500.0,0.00030136,2]
[311160508,1704947442236,-504.04,0.00030136,2]
[311160510,1704947442245,-500.0,0.00030136,2]
[311160512,1704947442254,-500.0,0.00030136,2]
[311160514,1704947442264,-500.0,0.00030136,2]
[311160516,1704947442273,-500.0,0.00030136,2]
[311160517,1704947442282,-500.0,0.00030136,2]
[311160519,1704947442291,-500.0,0.00030136,2]
[311160521,1704947442301,-500.0,0.00030136,2]
[311160524,1704947442310,-500.0,0.00030136,2]
[311160527,1704947442319,-597.46,0.00030136,2]
[311160530,1704947442328,-500.0,0.00030136,2]
[311160532,1704947442337,-500.0,0.00030136,2]
[311160534,1704947442346,-502.77795987,0.00030136,2]
[311160536,1704947442354,-500.0,0.00030136,2]
[311160537,1704947442363,-500.0,0.00030136,2]
[311160541,1704947442455,-230.84334159,0.00030136,2]
[311160542,1704947442464,-500.0,0.00030136,2]
[311160543,1704947442474,-500.0,0.00030136,2]
[311160544,1704947442484,-500.0,0.00030136,2]
[311160545,1704947442493,-507.5451447,0.00030136,2]
[311160546,1704947442503,-505.49538568,0.00030136,2]
[311160547,1704947442513,-500.0,0.00030136,2]
[311160548,1704947442522,-502.55761513,0.00030136,2]
[311160549,1704947442531,-503.58951004,0.00030136,2]
[311160550,1704947442541,-506.58492952,0.00030136,2]
[311160552,1704947442551,-702.12,0.00030136,2]
[311160553,1704947442560,-500.0,0.00030136,2]
[311160554,1704947442569,-500.0,0.00030136,2]
[311160555,1704947442579,-500.0,0.00030136,2]
[311160556,1704947442588,-500.0,0.00030136,2]
[311160557,1704947442597,-500.0,0.00030136,2]
[311160558,1704947442607,-500.0,0.00030136,2]
[311160559,1704947442617,-506.28699417,0.00030136,2]
[311160560,1704947442627,-503.18365884,0.00030136,2]
[311160561,1704947442637,-500.0,0.00030136,2]
[311160562,1704947442647,-500.0,0.00030136,2]
[311160563,1704947442658,-507.36864681,0.00030136,2]
[311160564,1704947442669,-500.0,0.00030136,2]
[311160566,1704947442678,-500.0,0.00030136,2]
[311160568,1704947442687,-500.0,0.00030136,2]
[311160570,1704947442696,-500.0,0.00030136,2]
[311160572,1704947442705,-533.22,0.00030136,2]
[311160573,1704947442714,-500.0,0.00030136,2]
[311160574,1704947442723,-262.2206742,0.00030136,2]
[311160576,1704947442733,-500.0,0.00030136,2]
[311160578,1704947442743,-500.0,0.00030136,2]
[311160579,1704947442753,-500.0,0.00030136,2]
[311160581,1704947442763,-500.0,0.00030136,2]
[311160583,1704947442773,-500.0,0.00030136,2]
[311160584,1704947442782,-500.0,0.00030136,2]
[311160585,1704947442792,-500.0,0.00030136,2]
[311160587,1704947442801,-500.0,0.00030136,2]
[311160589,1704947442810,-500.0,0.00030136,2]
[311160590,1704947442819,-500.0,0.00030136,2]
[311160591,1704947442829,-500.0,0.00030136,2]
[311160592,1704947442838,-500.0,0.00030136,2]
[311160593,1704947442847,-500.0,0.00030136,2]
[311160594,1704947442856,-500.0,0.00030136,2]
[311160595,1704947442866,-500.0,0.00030136,2]
[311160596,1704947442875,-500.0,0.00030136,2]
[311160597,1704947442884,-573.20229012,0.00030136,2]
[311160598,1704947442893,-1267.6,0.00030136,2]
[311160599,1704947442902,-500.0,0.00030136,2]
[311160600,1704947442913,-500.0,0.00030136,2]
[311160601,1704947442921,-3159.63,0.00030136,2]
[311160602,1704947442930,-411.81553534,0.00030136,2]
[311160603,1704947442940,-500.0,0.00030136,2]
[311160604,1704947442949,-500.0,0.00030136,2]
[311160605,1704947442958,-705.7,0.00030136,2]
[311160606,1704947442967,-257.42195307,0.00030136,2]
[311160607,1704947442976,-500.0,0.00030136,2]
[311160608,1704947442985,-500.0,0.00030136,2]
[311160609,1704947442994,-1009.22,0.00030136,2]
[311160610,1704947443004,-500.0,0.00030136,2]
[311160611,1704947443012,-500.0,0.00030136,2]
[311160612,1704947443021,-500.0,0.00030136,2]
[311160613,1704947443029,-500.0,0.00030136,2]
[311160614,1704947443039,-500.0,0.00030136,2]
[311160615,1704947443047,-998.41,0.00030136,2]
[311160616,1704947443057,-500.0,0.00030136,2]
[311160617,1704947443066,-588.93005954,0.00030136,2]
[311160619,1704947443074,-500.0,0.00030136,2]
[311160621,1704947443083,-500.0,0.00030136,2]
[311160623,1704947443092,-500.0,0.00030136,2]
[311160625,1704947443106,-557.43,0.00030136,2]
[311160626,1704947443115,-683.46,0.00030136,2]
[311160627,1704947443126,-500.0,0.00030136,2]
[311160628,1704947443135,-500.0,0.00030136,5]
[311160629,1704947443146,-502.21,0.00030136,2]
[311160630,1704947443155,-991.37,0.00030136,2]
[311160631,1704947443166,-557.70085945,0.00030136,2]
[311160632,1704947443176,-349.44261804,0.00030136,2]
[311160633,1704947443185,-897.86,0.00030136,2]
[311160634,1704947443195,-500.0,0.00030136,2]
[311160635,1704947443204,-503.03106236,0.00030136,2]
[311160636,1704947443213,-500.0,0.00030136,2]
[311160637,1704947443222,-500.0,0.00030136,2]
[311160638,1704947443231,-2074.55,0.00030136,2]
[311160639,1704947443241,-500.0,0.00030136,2]
[311160640,1704947443250,-500.0,0.00030136,2]
[311160641,1704947443260,-500.0,0.00030136,2]
[311160642,1704947443270,-850.7,0.00030136,2]
[311160643,1704947443279,-500.0,0.00030136,2]
[311160644,1704947443289,-502.33696748,0.00030136,2]
[311160645,1704947443298,-500.0,0.00030136,2]
[311160646,1704947443307,-500.0,0.00030136,2]
[311160647,1704947443316,-301.39905633,0.00030136,2]
[311160648,1704947443325,-1000.0,0.00030136,2]
[311160649,1704947443334,-181.47548314,0.00030136,2]
[311160650,1704947443344,-500.0,0.00030136,2]
[311160651,1704947443354,-9680.85,0.00030136,2]
[311160652,1704947443363,-500.0,0.00030136,2]
[311160653,1704947443372,-500.0,0.00030136,2]
[311160654,1704947443382,-500.0,0.00030136,2]
[311160655,1704947443391,-500.0,0.00030136,2]
[311160656,1704947443400,-627.1533721,0.00030136,2]
[311160657,1704947443410,-500.0,0.00030136,2]
[311160658,1704947443419,-500.0,0.00030136,2]
[311160659,1704947443428,-500.0,0.00030136,2]